[Event "Titled Tuesday Blitz January 17 Late 2023"]
[White "Corredor Castellanos, Camilo"]
[Black "Vargas, Mauricio"]
[WhiteFideId "4425871"]
[BlackFideId "4404572"]
[WhiteElo "1957"]
[BlackElo "2035"]
[Result "1-0"]
[Round "10"]
[TimeControl "180+2"]
[Date "2023.01.17"]
[WhiteClock "0:00:55"]
[BlackClock "0:00:02"]

1. d4 {[%clk 0:03:00]}  d5 {[%clk 0:02:08]} 2. c4 {[%clk 0:02:58]}  c6 {[%clk 0:02:08]} 3. Nf3 {[%clk 0:02:57]}  e6 {[%clk 0:02:08]} 4. e3 {[%clk 0:02:58]}  Nf6 {[%clk 0:02:05]} 5. b3 {[%clk 0:02:58]}  Nbd7 {[%clk 0:02:05]} 6. Bb2 {[%clk 0:02:59]}  Bd6 {[%clk 0:02:05]} 7. Nc3 {[%clk 0:02:58]}  O-O {[%clk 0:02:04]} 8. Bd3 {[%clk 0:02:59]}  Re8 {[%clk 0:02:03]} 9. e4 {[%clk 0:02:38]}  dxe4 {[%clk 0:01:58]} 10. Nxe4 {[%clk 0:02:39]}  Nxe4 {[%clk 0:01:37]} 11. Bxe4 {[%clk 0:02:40]}  Nf6 {[%clk 0:01:38]} 12. Bc2 {[%clk 0:02:38]}  Qa5+ {[%clk 0:01:21]} 13. Kf1 {[%clk 0:02:10]}  Qh5 {[%clk 0:01:11]} 14. Ne5 {[%clk 0:02:05]}  Qh4 {[%clk 0:00:49]} 15. Nf3 {[%clk 0:01:51]}  Qh5 {[%clk 0:00:46]} 16. Ne5 {[%clk 0:01:48]}  Qh4 {[%clk 0:00:45]} 17. Qf3 {[%clk 0:01:44]}  c5 {[%clk 0:00:16]} 18. Rd1 {[%clk 0:01:34]}  cxd4 {[%clk 0:00:15]} 19. Rxd4 {[%clk 0:01:34]}  Bc5 {[%clk 0:00:14]} 20. Rxh4 {[%clk 0:01:33]}  Rb8 {[%clk 0:00:07]} 21. Rxh7 {[%clk 0:01:28]}  b5 {[%clk 0:00:03]} 22. Qxf6 {[%clk 0:00:54]}  gxf6 {[%clk 0:00:02]} 23. Ng4 {[%clk 0:00:55]} 1-0


[Site "https://www.chess.com"]

[Event "Titled Tuesday Blitz January 17 Late 2023"]
[White "Nakamura, Hikaru"]
[Black "Duda, Jan-Krzysztof"]
[WhiteFideId "2016192"]
[BlackFideId "1170546"]
[WhiteElo "2775"]
[BlackElo "2724"]
[Result "1-0"]
[Round "11"]
[TimeControl "180+2"]
[Date "2023.01.17"]
[WhiteClock "0:00:20"]
[BlackClock "0:00:02"]

1. e4 {[%clk 0:03:00]}  e5 {[%clk 0:03:00]} 2. Nf3 {[%clk 0:03:00]}  Nc6 {[%clk 0:03:01]} 3. Bb5 {[%clk 0:03:01]}  Nf6 {[%clk 0:03:01]} 4. d3 {[%clk 0:03:01]}  Bc5 {[%clk 0:03:01]} 5. Bxc6 {[%clk 0:03:01]}  dxc6 {[%clk 0:03:01]} 6. Nbd2 {[%clk 0:03:02]}  Nd7 {[%clk 0:02:59]} 7. O-O {[%clk 0:03:02]}  O-O {[%clk 0:02:58]} 8. Nc4 {[%clk 0:03:00]}  f6 {[%clk 0:02:57]} 9. Kh1 {[%clk 0:03:00]}  Re8 {[%clk 0:02:52]} 10. Ne3 {[%clk 0:02:42]}  Nf8 {[%clk 0:02:50]} 11. Rg1 {[%clk 0:02:41]}  Bxe3 {[%clk 0:02:44]} 12. Bxe3 {[%clk 0:02:41]}  Bg4 {[%clk 0:02:45]} 13. h3 {[%clk 0:02:41]}  Bxf3 {[%clk 0:02:45]} 14. Qxf3 {[%clk 0:02:39]}  Ne6 {[%clk 0:02:46]} 15. Qe2 {[%clk 0:02:38]}  c5 {[%clk 0:02:45]} 16. a4 {[%clk 0:02:37]}  a5 {[%clk 0:02:38]} 17. b3 {[%clk 0:02:37]}  b6 {[%clk 0:02:38]} 18. Raf1 {[%clk 0:02:36]}  Qd6 {[%clk 0:02:38]} 19. Qd2 {[%clk 0:02:35]}  Rad8 {[%clk 0:02:31]} 20. f4 {[%clk 0:02:31]}  exf4 {[%clk 0:02:25]} 21. Bxf4 {[%clk 0:02:32]}  Nxf4 {[%clk 0:02:20]} 22. Rxf4 {[%clk 0:02:33]}  Re5 {[%clk 0:02:20]} 23. Rgf1 {[%clk 0:02:30]}  Qe6 {[%clk 0:02:18]} 24. Qf2 {[%clk 0:02:26]}  Kh8 {[%clk 0:02:17]} 25. Rf3 {[%clk 0:02:25]}  h6 {[%clk 0:02:14]} 26. Kg1 {[%clk 0:02:26]}  Rd7 {[%clk 0:02:13]} 27. Qh4 {[%clk 0:02:25]}  Kh7 {[%clk 0:02:13]} 28. Qf2 {[%clk 0:02:01]}  Qd6 {[%clk 0:02:09]} 29. Kh1 {[%clk 0:02:00]}  Qe6 {[%clk 0:02:09]} 30. Rf4 {[%clk 0:02:00]}  Rg5 {[%clk 0:02:08]} 31. Qe3 {[%clk 0:01:56]}  Re5 {[%clk 0:02:07]} 32. g4 {[%clk 0:01:54]}  Re7 {[%clk 0:01:56]} 33. Rf5 {[%clk 0:01:52]}  Qd6 {[%clk 0:01:52]} 34. Qf2 {[%clk 0:01:51]}  Kg8 {[%clk 0:01:51]} 35. Kg2 {[%clk 0:01:50]}  Kf7 {[%clk 0:01:48]} 36. Qg3 {[%clk 0:01:50]}  Ke8 {[%clk 0:01:47]} 37. R5f3 {[%clk 0:01:48]}  Kd7 {[%clk 0:01:47]} 38. Rf5 {[%clk 0:01:49]}  Kc6 {[%clk 0:01:47]} 39. h4 {[%clk 0:01:49]}  Kb7 {[%clk 0:01:42]} 40. R1f2 {[%clk 0:01:47]}  R7e6 {[%clk 0:01:37]} 41. Qf3 {[%clk 0:01:46]}  Ka7 {[%clk 0:01:34]} 42. Qe3 {[%clk 0:01:46]}  Qe7 {[%clk 0:01:33]} 43. Kf1 {[%clk 0:01:45]}  Qd7 {[%clk 0:01:32]} 44. Ke1 {[%clk 0:01:43]}  c4 {[%clk 0:01:22]} 45. bxc4 {[%clk 0:01:42]}  Qxa4 {[%clk 0:01:21]} 46. Kf1 {[%clk 0:01:36]}  Qb4 {[%clk 0:01:18]} 47. Kg2 {[%clk 0:01:35]}  Rxf5 {[%clk 0:01:14]} 48. gxf5 {[%clk 0:01:35]}  Re5 {[%clk 0:01:12]} 49. Qg3 {[%clk 0:01:29]}  Qe7 {[%clk 0:00:59]} 50. Kf3 {[%clk 0:01:27]}  Qd7 {[%clk 0:00:43]} 51. Rg2 {[%clk 0:01:28]}  Re7 {[%clk 0:00:43]} 52. Qf4 {[%clk 0:01:25]}  Qd4 {[%clk 0:00:41]} 53. Qe3 {[%clk 0:01:22]}  Qe5 {[%clk 0:00:37]} 54. d4 {[%clk 0:01:00]}  Qd6 {[%clk 0:00:35]} 55. c5 {[%clk 0:01:01]}  bxc5 {[%clk 0:00:30]} 56. dxc5 {[%clk 0:01:02]}  Qc6 {[%clk 0:00:28]} 57. Qd4 {[%clk 0:00:59]}  Re5 {[%clk 0:00:21]} 58. Kf4 {[%clk 0:00:44]}  Rxc5 {[%clk 0:00:16]} 59. Rxg7 {[%clk 0:00:43]}  a4 {[%clk 0:00:11]} 60. Rg1 {[%clk 0:00:31]}  Ka6 {[%clk 0:00:10]} 61. Qd3+ {[%clk 0:00:29]}  Qb5 {[%clk 0:00:04]} 62. Rg6 {[%clk 0:00:27]}  Qxd3 {[%clk 0:00:03]} 63. cxd3 {[%clk 0:00:27]}  a3 {[%clk 0:00:03]} 64. Rxf6+ {[%clk 0:00:27]}  Kb5 {[%clk 0:00:02]} 65. Rg6 {[%clk 0:00:28]}  Rc1 {[%clk 0:00:02]} 66. Rg2 {[%clk 0:00:29]}  Kb4 {[%clk 0:00:03]} 67. e5 {[%clk 0:00:29]}  Kb3 {[%clk 0:00:02]} 68. e6 {[%clk 0:00:30]}  Re1 {[%clk 0:00:01]} 69. d4 {[%clk 0:00:29]}  a2 {[%clk 0:00:01]} 70. Rxa2 {[%clk 0:00:29]}  Kxa2 {[%clk 0:00:02]} 71. d5 {[%clk 0:00:30]}  Kb3 {[%clk 0:00:03]} 72. f6 {[%clk 0:00:30]}  Kc4 {[%clk 0:00:03]} 73. f7 {[%clk 0:00:25]}  Kxd5 {[%clk 0:00:04]} 74. e7 {[%clk 0:00:25]}  Rxe7 {[%clk 0:00:02]} 75. f8=Q {[%clk 0:00:26]}  Re6 {[%clk 0:00:02]} 76. Qf7 {[%clk 0:00:22]}  Kd6 {[%clk 0:00:02]} 77. Kf5 {[%clk 0:00:20]}  Re5+ {[%clk 0:00:02]} 78. Kg6 {[%clk 0:00:21]}  h5 {[%clk 0:00:02]} 79. Qf4 {[%clk 0:00:20]}  Ke6 {[%clk 0:00:02]} 80. Qc4+ {[%clk 0:00:19]}  Kd6 {[%clk 0:00:02]} 81. Kf6 {[%clk 0:00:20]}  Rd5 {[%clk 0:00:02]} 82. Qe4 {[%clk 0:00:20]}  c6 {[%clk 0:00:02]} 83. Qe7# {[%clk 0:00:20]} 1-0


[Site "https://www.chess.com"]

[Event "Titled Tuesday Blitz January 17 Late 2023"]
[White "Martinez Alcantara, Jose Eduardo"]
[Black "Dominguez Perez, Leinier"]
[WhiteFideId "3805662"]
[BlackFideId "3503240"]
[WhiteElo "2619"]
[BlackElo "2739"]
[Result "0-1"]
[Round "11"]
[TimeControl "180+2"]
[Date "2023.01.17"]
[WhiteClock "0:00:02"]
[BlackClock "0:00:06"]

1. Nf3 {[%clk 0:03:00]}  d5 {[%clk 0:02:59]} 2. g3 {[%clk 0:03:01]}  Nf6 {[%clk 0:02:58]} 3. c4 {[%clk 0:03:01]}  d4 {[%clk 0:02:56]} 4. Bg2 {[%clk 0:03:01]}  c5 {[%clk 0:02:56]} 5. O-O {[%clk 0:03:01]}  Nc6 {[%clk 0:02:55]} 6. e3 {[%clk 0:03:02]}  e6 {[%clk 0:02:52]} 7. exd4 {[%clk 0:03:03]}  cxd4 {[%clk 0:02:53]} 8. d3 {[%clk 0:03:04]}  h6 {[%clk 0:02:53]} 9. Bf4 {[%clk 0:03:04]}  Bd6 {[%clk 0:02:52]} 10. Bxd6 {[%clk 0:03:04]}  Qxd6 {[%clk 0:02:50]} 11. Re1 {[%clk 0:03:04]}  O-O {[%clk 0:02:18]} 12. Na3 {[%clk 0:03:03]}  a6 {[%clk 0:02:16]} 13. Rc1 {[%clk 0:03:01]}  Qc5 {[%clk 0:01:58]} 14. Nc2 {[%clk 0:02:58]}  a5 {[%clk 0:01:55]} 15. a3 {[%clk 0:02:48]}  a4 {[%clk 0:01:52]} 16. Qd2 {[%clk 0:02:48]}  Bd7 {[%clk 0:01:50]} 17. Qf4 {[%clk 0:02:38]}  Rfe8 {[%clk 0:01:43]} 18. Ne5 {[%clk 0:02:34]}  Rad8 {[%clk 0:01:39]} 19. Nxc6 {[%clk 0:02:14]}  Bxc6 {[%clk 0:01:38]} 20. Qe5 {[%clk 0:02:02]}  Nd7 {[%clk 0:01:36]} 21. Qf4 {[%clk 0:01:49]}  e5 {[%clk 0:01:34]} 22. Qh4 {[%clk 0:01:44]}  Bxg2 {[%clk 0:01:32]} 23. Kxg2 {[%clk 0:01:45]}  Nf6 {[%clk 0:01:32]} 24. f3 {[%clk 0:01:39]}  Rc8 {[%clk 0:01:23]} 25. Nb4 {[%clk 0:01:36]}  Qd6 {[%clk 0:01:22]} 26. Qh3 {[%clk 0:01:35]}  Rc5 {[%clk 0:01:16]} 27. Rc2 {[%clk 0:01:32]}  b5 {[%clk 0:01:10]} 28. cxb5 {[%clk 0:01:28]}  Rxc2+ {[%clk 0:01:07]} 29. Nxc2 {[%clk 0:01:29]}  Rb8 {[%clk 0:01:07]} 30. Nb4 {[%clk 0:01:27]}  Nd5 {[%clk 0:00:57]} 31. Nxd5 {[%clk 0:00:52]}  Qxd5 {[%clk 0:00:57]} 32. Rc1 {[%clk 0:00:44]}  Rxb5 {[%clk 0:00:57]} 33. Rc2 {[%clk 0:00:16]}  Rc5 {[%clk 0:00:57]} 34. Re2 {[%clk 0:00:12]}  Qb3 {[%clk 0:00:54]} 35. Qf5 {[%clk 0:00:11]}  g6 {[%clk 0:00:54]} 36. Qe4 {[%clk 0:00:09]}  Rc2 {[%clk 0:00:51]} 37. Kh3 {[%clk 0:00:03]}  Rxb2 {[%clk 0:00:35]} 38. Rxb2 {[%clk 0:00:02]}  Qxb2 {[%clk 0:00:35]} 39. Qa8+ {[%clk 0:00:03]}  Kg7 {[%clk 0:00:32]} 40. Qxa4 {[%clk 0:00:04]}  Qb1 {[%clk 0:00:20]} 41. Qe8 {[%clk 0:00:03]}  Qf1+ {[%clk 0:00:19]} 42. Kh4 {[%clk 0:00:04]}  Qe2 {[%clk 0:00:16]} 43. h3 {[%clk 0:00:03]}  Qe3 {[%clk 0:00:10]} 44. Qe7 {[%clk 0:00:03]}  Qxd3 {[%clk 0:00:09]} 45. Qxe5+ {[%clk 0:00:03]}  Kh7 {[%clk 0:00:09]} 46. g4 {[%clk 0:00:02]}  Qxf3 {[%clk 0:00:07]} 47. Qxd4 {[%clk 0:00:01]}  g5+ {[%clk 0:00:06]} 48. Kh5 {[%clk 0:00:02]}  Qxh3# {[%clk 0:00:06]} 0-1


[Site "https://www.chess.com"]

[Event "Titled Tuesday Blitz January 17 Late 2023"]
[White "Bernadskiy, Vitaliy"]
[Black "Paravyan, David"]
[WhiteFideId "14100371"]
[BlackFideId "4194985"]
[WhiteElo "2592"]
[BlackElo "2601"]
[Result "0-1"]
[Round "11"]
[TimeControl "180+2"]
[Date "2023.01.17"]
[WhiteClock "0:00:04"]
[BlackClock "0:00:03"]

1. e4 {[%clk 0:03:00]}  e5 {[%clk 0:03:00]} 2. Nf3 {[%clk 0:03:00]}  Nf6 {[%clk 0:03:00]} 3. Nxe5 {[%clk 0:02:59]}  d6 {[%clk 0:03:00]} 4. Nf3 {[%clk 0:02:59]}  Nxe4 {[%clk 0:03:01]} 5. d4 {[%clk 0:03:00]}  d5 {[%clk 0:03:01]} 6. Bd3 {[%clk 0:03:00]}  Bd6 {[%clk 0:03:02]} 7. O-O {[%clk 0:02:59]}  O-O {[%clk 0:03:02]} 8. c4 {[%clk 0:02:58]}  c6 {[%clk 0:03:02]} 9. Re1 {[%clk 0:02:57]}  Bf5 {[%clk 0:03:02]} 10. Qb3 {[%clk 0:02:55]}  Qd7 {[%clk 0:03:02]} 11. c5 {[%clk 0:02:55]}  Bc7 {[%clk 0:03:01]} 12. g3 {[%clk 0:02:51]}  Ba5 {[%clk 0:02:53]} 13. Ne5 {[%clk 0:02:30]}  Qe6 {[%clk 0:01:41]} 14. Rxe4 {[%clk 0:02:18]}  dxe4 {[%clk 0:01:41]} 15. Bc4 {[%clk 0:02:18]}  Qe7 {[%clk 0:01:40]} 16. Bf4 {[%clk 0:01:49]}  b5 {[%clk 0:01:32]} 17. cxb6 {[%clk 0:01:34]}  Bxb6 {[%clk 0:01:28]} 18. d5 {[%clk 0:01:24]}  Bc7 {[%clk 0:00:20]} 19. Qb7 {[%clk 0:00:48]}  e3 {[%clk 0:00:08]} 20. fxe3 {[%clk 0:00:42]}  g5 {[%clk 0:00:08]} 21. Qxa8 {[%clk 0:00:08]}  gxf4 {[%clk 0:00:07]} 22. exf4 {[%clk 0:00:07]}  Bxe5 {[%clk 0:00:07]} 23. fxe5 {[%clk 0:00:07]}  Qc5+ {[%clk 0:00:08]} 24. Kg2 {[%clk 0:00:07]}  Qxc4 {[%clk 0:00:09]} 25. Nc3 {[%clk 0:00:07]}  Qb4 {[%clk 0:00:05]} 26. Rf1 {[%clk 0:00:06]}  Qxb2+ {[%clk 0:00:03]} 27. Rf2 {[%clk 0:00:07]}  Bh3+ {[%clk 0:00:02]} 28. Kxh3 {[%clk 0:00:06]}  Qxf2 {[%clk 0:00:03]} 29. dxc6 {[%clk 0:00:04]}  Qf5+ {[%clk 0:00:03]} 30. Kg2 {[%clk 0:00:04]}  Qc2+ {[%clk 0:00:03]} 0-1


[Site "https://www.chess.com"]

[Event "Titled Tuesday Blitz January 17 Late 2023"]
[White "Pakleza, Zbigniew"]
[Black "Oparin, Grigoriy"]
[WhiteFideId "1119290"]
[BlackFideId "24125890"]
[WhiteElo "2494"]
[BlackElo "2667"]
[Result "1-0"]
[Round "11"]
[TimeControl "180+2"]
[Date "2023.01.17"]
[WhiteClock "0:00:07"]
[BlackClock "0:00:23"]

1. d4 {[%clk 0:03:00]}  Nf6 {[%clk 0:03:00]} 2. Nf3 {[%clk 0:03:01]}  d5 {[%clk 0:03:00]} 3. Bf4 {[%clk 0:03:01]}  e6 {[%clk 0:03:00]} 4. e3 {[%clk 0:03:01]}  c5 {[%clk 0:03:01]} 5. c3 {[%clk 0:03:01]}  Nc6 {[%clk 0:03:01]} 6. Nbd2 {[%clk 0:03:01]}  cxd4 {[%clk 0:03:02]} 7. cxd4 {[%clk 0:03:01]}  Nh5 {[%clk 0:02:56]} 8. Be5 {[%clk 0:03:01]}  f6 {[%clk 0:02:52]} 9. Bg3 {[%clk 0:03:01]}  g6 {[%clk 0:02:51]} 10. Bh4 {[%clk 0:02:58]}  Be7 {[%clk 0:02:45]} 11. Be2 {[%clk 0:02:56]}  O-O {[%clk 0:02:45]} 12. O-O {[%clk 0:02:56]}  Ng7 {[%clk 0:02:45]} 13. Rc1 {[%clk 0:02:46]}  Nf5 {[%clk 0:02:43]} 14. Bg3 {[%clk 0:02:47]}  Bd7 {[%clk 0:02:43]} 15. Nb3 {[%clk 0:02:44]}  Nxg3 {[%clk 0:02:42]} 16. hxg3 {[%clk 0:02:44]}  b6 {[%clk 0:02:21]} 17. a3 {[%clk 0:02:41]}  Rc8 {[%clk 0:02:16]} 18. Nfd2 {[%clk 0:02:40]}  Nb8 {[%clk 0:02:15]} 19. Bd3 {[%clk 0:02:32]}  Kg7 {[%clk 0:02:14]} 20. Qe2 {[%clk 0:02:30]}  Rxc1 {[%clk 0:01:59]} 21. Rxc1 {[%clk 0:02:29]}  Be8 {[%clk 0:02:00]} 22. e4 {[%clk 0:02:24]}  dxe4 {[%clk 0:01:57]} 23. Qxe4 {[%clk 0:02:20]}  Bf7 {[%clk 0:01:56]} 24. Qb7 {[%clk 0:02:15]}  a5 {[%clk 0:01:43]} 25. Nf3 {[%clk 0:01:34]}  Bd6 {[%clk 0:01:24]} 26. Nbd2 {[%clk 0:01:26]}  Re8 {[%clk 0:01:21]} 27. Nc4 {[%clk 0:01:11]}  e5 {[%clk 0:01:14]} 28. dxe5 {[%clk 0:01:03]}  fxe5 {[%clk 0:01:15]} 29. Nxd6 {[%clk 0:00:54]}  Qxd6 {[%clk 0:01:12]} 30. Rc7 {[%clk 0:00:54]}  Rf8 {[%clk 0:00:50]} 31. Bc4 {[%clk 0:00:51]}  e4 {[%clk 0:00:36]} 32. Rxf7+ {[%clk 0:00:44]}  Rxf7 {[%clk 0:00:36]} 33. Qxf7+ {[%clk 0:00:44]}  Kh6 {[%clk 0:00:37]} 34. Nh4 {[%clk 0:00:21]}  Nc6 {[%clk 0:00:30]} 35. Qf4+ {[%clk 0:00:19]}  Qxf4 {[%clk 0:00:31]} 36. gxf4 {[%clk 0:00:20]}  Nd4 {[%clk 0:00:29]} 37. g3 {[%clk 0:00:16]}  g5 {[%clk 0:00:28]} 38. fxg5+ {[%clk 0:00:13]}  Kxg5 {[%clk 0:00:29]} 39. Kf1 {[%clk 0:00:13]}  Kf6 {[%clk 0:00:28]} 40. Ng2 {[%clk 0:00:10]}  Nf3 {[%clk 0:00:28]} 41. Ke2 {[%clk 0:00:10]}  Ke5 {[%clk 0:00:28]} 42. Ke3 {[%clk 0:00:08]}  Nd4 {[%clk 0:00:27]} 43. Nf4 {[%clk 0:00:07]}  Nf5+ {[%clk 0:00:27]} 44. Ke2 {[%clk 0:00:06]}  e3 {[%clk 0:00:27]} 45. Bd3 {[%clk 0:00:05]}  Nd4+ {[%clk 0:00:23]} 46. Kxe3 {[%clk 0:00:05]}  Nc6 {[%clk 0:00:21]} 47. Bxh7 {[%clk 0:00:05]}  b5 {[%clk 0:00:22]} 48. Be4 {[%clk 0:00:04]}  Nd8 {[%clk 0:00:22]} 49. Bd3 {[%clk 0:00:04]}  b4 {[%clk 0:00:23]} 50. axb4 {[%clk 0:00:05]}  axb4 {[%clk 0:00:23]} 51. Be2 {[%clk 0:00:06]}  Nf7 {[%clk 0:00:23]} 52. Nd3+ {[%clk 0:00:06]}  Kd5 {[%clk 0:00:23]} 53. Nxb4+ {[%clk 0:00:07]}  Kc5 {[%clk 0:00:24]} 54. Nd3+ {[%clk 0:00:07]}  Kd5 {[%clk 0:00:25]} 55. f4 {[%clk 0:00:08]}  Nd6 {[%clk 0:00:24]} 56. Bf3+ {[%clk 0:00:09]}  Kc4 {[%clk 0:00:24]} 57. g4 {[%clk 0:00:09]}  Kb3 {[%clk 0:00:23]} 58. f5 {[%clk 0:00:07]}  Nc4+ {[%clk 0:00:23]} 59. Kd4 {[%clk 0:00:07]}  Nd2 {[%clk 0:00:24]} 60. Bd5+ {[%clk 0:00:07]}  Kc2 {[%clk 0:00:25]} 61. f6 {[%clk 0:00:07]}  Kb1 {[%clk 0:00:25]} 62. f7 {[%clk 0:00:07]}  Ka1 {[%clk 0:00:23]} 63. f8=Q {[%clk 0:00:07]}  Kb1 {[%clk 0:00:23]} 64. g5 {[%clk 0:00:07]} 1-0


[Site "https://www.chess.com"]

[Event "Titled Tuesday Blitz January 17 Late 2023"]
[White "Bortnyk, Mykola"]
[Black "Borges Feria, Yasel"]
[WhiteFideId "14120836"]
[BlackFideId "3504921"]
[WhiteElo "2425"]
[BlackElo "2439"]
[Result "1-0"]
[Round "11"]
[TimeControl "180+2"]
[Date "2023.01.17"]
[WhiteClock "0:00:11"]
[BlackClock "0:00:07"]

1. e4 {[%clk 0:03:00]}  e5 {[%clk 0:02:57]} 2. Nf3 {[%clk 0:03:00]}  Nc6 {[%clk 0:02:57]} 3. Bb5 {[%clk 0:03:01]}  a6 {[%clk 0:02:57]} 4. Ba4 {[%clk 0:03:01]}  Nf6 {[%clk 0:02:57]} 5. Qe2 {[%clk 0:03:01]}  b5 {[%clk 0:02:54]} 6. Bb3 {[%clk 0:03:01]}  Be7 {[%clk 0:02:54]} 7. O-O {[%clk 0:03:02]}  d6 {[%clk 0:02:55]} 8. a4 {[%clk 0:03:02]}  Rb8 {[%clk 0:02:52]} 9. axb5 {[%clk 0:03:02]}  axb5 {[%clk 0:02:53]} 10. h3 {[%clk 0:02:56]}  O-O {[%clk 0:02:53]} 11. Rd1 {[%clk 0:02:50]}  Be6 {[%clk 0:02:50]} 12. Bxe6 {[%clk 0:02:38]}  fxe6 {[%clk 0:02:50]} 13. c3 {[%clk 0:02:30]}  Ra8 {[%clk 0:02:29]} 14. Na3 {[%clk 0:02:22]}  b4 {[%clk 0:02:12]} 15. cxb4 {[%clk 0:02:22]}  Nxb4 {[%clk 0:02:13]} 16. d4 {[%clk 0:02:20]}  exd4 {[%clk 0:02:08]} 17. Nxd4 {[%clk 0:02:20]}  Qd7 {[%clk 0:02:08]} 18. e5 {[%clk 0:02:00]}  Nfd5 {[%clk 0:02:07]} 19. exd6 {[%clk 0:01:55]}  Bxd6 {[%clk 0:02:07]} 20. Qxe6+ {[%clk 0:01:52]}  Qxe6 {[%clk 0:02:05]} 21. Nxe6 {[%clk 0:01:53]}  Rfe8 {[%clk 0:02:06]} 22. Nd4 {[%clk 0:01:48]}  Re4 {[%clk 0:02:03]} 23. Nf5 {[%clk 0:01:43]}  Rae8 {[%clk 0:01:55]} 24. Bd2 {[%clk 0:01:29]}  Bf4 {[%clk 0:01:46]} 25. Bxb4 {[%clk 0:01:22]}  Nxb4 {[%clk 0:01:43]} 26. g3 {[%clk 0:01:21]}  Be5 {[%clk 0:01:40]} 27. Rab1 {[%clk 0:01:17]}  g6 {[%clk 0:01:25]} 28. Nh6+ {[%clk 0:01:15]}  Kg7 {[%clk 0:01:25]} 29. Ng4 {[%clk 0:01:15]}  Bd6 {[%clk 0:01:22]} 30. Nb5 {[%clk 0:01:14]}  Bc5 {[%clk 0:01:19]} 31. Rd7+ {[%clk 0:01:10]}  R8e7 {[%clk 0:01:17]} 32. Rbd1 {[%clk 0:01:06]}  Re1+ {[%clk 0:01:08]} 33. Rxe1 {[%clk 0:01:03]}  Rxd7 {[%clk 0:01:07]} 34. Kg2 {[%clk 0:00:51]}  h5 {[%clk 0:01:04]} 35. Ne5 {[%clk 0:00:49]}  Rd2 {[%clk 0:00:57]} 36. Rf1 {[%clk 0:00:46]}  Rxb2 {[%clk 0:00:51]} 37. Nxc7 {[%clk 0:00:44]}  Kh6 {[%clk 0:00:30]} 38. Ne6 {[%clk 0:00:42]}  Ba7 {[%clk 0:00:26]} 39. g4 {[%clk 0:00:36]}  Re2 {[%clk 0:00:22]} 40. g5+ {[%clk 0:00:32]}  Kh7 {[%clk 0:00:22]} 41. Nf8+ {[%clk 0:00:23]}  Kg7 {[%clk 0:00:22]} 42. Nfxg6 {[%clk 0:00:24]}  Bd4 {[%clk 0:00:17]} 43. Kf3 {[%clk 0:00:21]}  Rxe5 {[%clk 0:00:17]} 44. Nxe5 {[%clk 0:00:22]}  Bxe5 {[%clk 0:00:18]} 45. Ke4 {[%clk 0:00:22]}  Bd6 {[%clk 0:00:16]} 46. f4 {[%clk 0:00:21]}  h4 {[%clk 0:00:16]} 47. f5 {[%clk 0:00:20]}  Bc5 {[%clk 0:00:16]} 48. Rc1 {[%clk 0:00:17]}  Na6 {[%clk 0:00:13]} 49. Rc4 {[%clk 0:00:17]}  Kf7 {[%clk 0:00:13]} 50. Kf4 {[%clk 0:00:15]}  Ke7 {[%clk 0:00:12]} 51. Kg4 {[%clk 0:00:15]}  Kd6 {[%clk 0:00:12]} 52. Kxh4 {[%clk 0:00:15]}  Nc7 {[%clk 0:00:13]} 53. Kh5 {[%clk 0:00:14]}  Nd5 {[%clk 0:00:12]} 54. f6 {[%clk 0:00:14]}  Be3 {[%clk 0:00:11]} 55. Kg6 {[%clk 0:00:11]}  Nf4+ {[%clk 0:00:10]} 56. Rxf4 {[%clk 0:00:09]}  Bxf4 {[%clk 0:00:11]} 57. h4 {[%clk 0:00:10]}  Ke6 {[%clk 0:00:11]} 58. h5 {[%clk 0:00:10]}  Be5 {[%clk 0:00:08]} 59. h6 {[%clk 0:00:10]}  Bd4 {[%clk 0:00:06]} 60. h7 {[%clk 0:00:10]}  Bxf6 {[%clk 0:00:07]} 61. gxf6 {[%clk 0:00:11]} 1-0


[Site "https://www.chess.com"]

[Event "Titled Tuesday Blitz January 17 Late 2023"]
[White "Zhigalko, Sergei"]
[Black "Chigaev, Maksim"]
[WhiteFideId "13502956"]
[BlackFideId "4108116"]
[WhiteElo "2572"]
[BlackElo "2628"]
[Result "0-1"]
[Round "11"]
[TimeControl "180+2"]
[Date "2023.01.17"]
[WhiteClock "0:00:02"]
[BlackClock "0:00:40"]

1. e4 {[%clk 0:03:00]}  c5 {[%clk 0:02:58]} 2. Nf3 {[%clk 0:03:01]}  e6 {[%clk 0:02:57]} 3. c3 {[%clk 0:03:01]}  d5 {[%clk 0:02:57]} 4. e5 {[%clk 0:02:58]}  d4 {[%clk 0:02:57]} 5. Bd3 {[%clk 0:02:58]}  Bd7 {[%clk 0:02:55]} 6. O-O {[%clk 0:02:57]}  Bc6 {[%clk 0:02:54]} 7. Qe2 {[%clk 0:02:56]}  Ne7 {[%clk 0:02:52]} 8. Be4 {[%clk 0:02:57]}  Ng6 {[%clk 0:02:48]} 9. d3 {[%clk 0:02:57]}  Be7 {[%clk 0:02:46]} 10. Re1 {[%clk 0:02:54]}  Bxe4 {[%clk 0:02:44]} 11. Qxe4 {[%clk 0:02:54]}  Nc6 {[%clk 0:02:44]} 12. g3 {[%clk 0:02:52]}  dxc3 {[%clk 0:02:35]} 13. Nxc3 {[%clk 0:02:36]}  O-O {[%clk 0:02:29]} 14. h4 {[%clk 0:02:36]}  h5 {[%clk 0:02:29]} 15. Bg5 {[%clk 0:02:26]}  Bxg5 {[%clk 0:02:20]} 16. Nxg5 {[%clk 0:02:07]}  Ncxe5 {[%clk 0:02:15]} 17. Rad1 {[%clk 0:02:07]}  Qf6 {[%clk 0:01:56]} 18. Qxb7 {[%clk 0:01:57]}  Ng4 {[%clk 0:01:43]} 19. Nce4 {[%clk 0:01:49]}  Qf5 {[%clk 0:01:39]} 20. Rc1 {[%clk 0:01:28]}  Rab8 {[%clk 0:00:51]} 21. Qxa7 {[%clk 0:01:25]}  Rxb2 {[%clk 0:00:51]} 22. Rxc5 {[%clk 0:01:06]}  e5 {[%clk 0:00:48]} 23. Rc7 {[%clk 0:00:56]}  Nxh4 {[%clk 0:00:45]} 24. gxh4 {[%clk 0:00:50]}  Qf4 {[%clk 0:00:42]} 25. Nh3 {[%clk 0:00:01]}  Qh2+ {[%clk 0:00:41]} 26. Kf1 {[%clk 0:00:02]}  Qh1+ {[%clk 0:00:40]} 0-1


[Site "https://www.chess.com"]